Cogmind - Beta 17 @@@ ROGUE MODE // 2026.07.04 @ 14:16:00 Player: Scarlet Result: Destroyed by G-47 Trooper with Particle Gun Performance ------------- Evolutions (2) 1000 Regions Visited (7) 1400 Robots Destroyed (39) 195 Value Destroyed (1077) 1077 Prototype IDs (23) 460 Alien Tech Used (0) 0 Bonus (500) 500 TOTAL SCORE: 4632 Bonus ------- Entered Garrisons 200 Aligned with FarCom 300 Cogmind --------- Core Integrity 0/550 Matter 235/300 Energy 62/100 System Corruption 3% Temperature Cool (18) Movement Core (400) Ox7 Location -8/Materials Parts ------- > --- POWER (1) -------- (None) > --- PROPULSION (3) --- (None) > --- UTILITY (4) ------ Large Storage Unit > --- WEAPON (3) ------- Pulse Rifle > --- INVENTORY (15) --- Carbon-fiber Leg Improved Heat Sink Improved Terrain Scanner Advanced Targeting Computer Reaction Control System Hardened Medium Armor Plating Hacking Suite Hammer Peak State ------------ > --- POWER ------------ Light Nuclear Core > --- PROPULSION ------- Aluminum Leg Improved Carbon-fiber Leg Improved Carbon-fiber Leg > --- UTILITY ---------- Large Storage Unit Advanced Visual Processing Unit Modified TNC Hardened Medium Armor Plating > --- WEAPON ----------- Pulse Rifle Pulse Rifle Axe > --- INVENTORY -------- Aluminum Leg Aluminum Leg Wheel Wheel Heat Sink Improved Terrain Scanner Advanced Targeting Computer Heavy Armor Plating Hacking Suite Particle Gun Ion Cannon Improved Light Cannon Flak Cannon Hammer [Rating: 37] Favorites ----------- Power Light Nuclear Core Engine Light Ion Engine Power Core Light Nuclear Core Propulsion Wheel Treads Light Treads Leg Improved Carbon-fiber Leg Wheel Wheel Utility Large Storage Unit Storage Large Storage Unit Processor Modified TNC Protection Hardened Medium Armor Plating Weapon Pulse Rifle Energy Gun Pulse Rifle Energy Cannon Ion Cannon Ballistic Gun Assault Rifle Ballistic Cannon Flak Cannon Launcher Concussive RPG Slashing Weapon Axe Build | -11 -10 -10 -10 -9 -8 -8 -8 ------- Run | Yrd Mat Min Exi Min Mat Gar Mat Slots Evolved 4 | . . . . . 4 . . Power . | . . . . . . . . Propulsion 1 | . . . . . 1 . . Utility 2 | . . . . . 2 . . Weapon 1 | . . . . . 1 . . Parts Attached 40 | 8 . . 2 2 14 7 7 Power 5 | 1 . . . 1 1 1 1 Engine 3 | 1 . . . . . 1 1 Core 2 | . . . . 1 1 . . Reactor . | . . . . . . . . Propulsion 14 | 4 . . . 1 5 2 2 Treads 2 | 2 . . . . . . . Leg 8 | . . . . . 4 2 2 Wheel 4 | 2 . . . 1 1 . . Hover . | . . . . . . . . Flight . | . . . . . . . . Utility 8 | 1 . . 2 . 4 . 1 Device . | . . . . . . . . Storage 2 | 1 . . 1 . . . . Processor 2 | . . . 1 . 1 . . Hackware . | . . . . . . . . Protection 4 | . . . . . 3 . 1 Artifact . | . . . . . . . . Weapon 13 | 2 . . . . 4 4 3 Energy Gun 6 | 1 . . . . 2 2 1 Energy Cannon 1 | . . . . . . . 1 Ballistic Gun 1 | 1 . . . . . . . Ballistic Cannon 2 | . . . . . 1 1 . Launcher 1 | . . . . . . 1 . Special Weapon . | . . . . . . . . Impact Weapon . | . . . . . . . . Slashing Weapon 2 | . . . . . 1 . 1 Piercing Weapon . | . . . . . . . . Special Melee Weapon . | . . . . . . . . Unidentified Prototypes . | . . . . . . . . Parts Lost 14 | . . . . . 2 4 8 Power 3 | . . . . . 2 . 1 Propulsion 3 | . . . . . . 1 2 Utility 3 | . . . . . . 1 2 Weapon 5 | . . . . . . 2 3 Highest Loss Streak 8 | . . . . . 1 4 8 To Critical Strikes . | . . . . . . . . Average Backups 7 | . . . . 4 12 13 13 Power . | . . . . . . . . Propulsion 2 | . . . . 2 4 3 2 Utility 2 | . . . . 1 3 6 6 Weapon 2 | . . . . . 4 3 3 Tool/Special . | . . . . . . . . Unused Backups 13 | . . . 1 . 3 . 9 Power . | . . . . . . . . Propulsion 2 | . . . . . . . 2 Utility 7 | . . . . . 1 . 6 Weapon 4 | . . . 1 . 2 . 1 Tool/Special . | . . . . . . . . Average Slot Usage (%) 90 | . 85 85 87 100 93 84 75 Engine 5 | . 14 14 14 7 . . 7 Core 4 | . . . . 7 8 . . Leg 9 | . . . . . 15 26 19 Wheel 15 | . 28 28 28 28 6 . 1 Storage 11 | . 14 14 14 14 9 9 9 Processor 11 | . . . 1 14 17 18 14 Protection 4 | . . . . . 8 6 . Energy Gun 14 | . 14 14 14 14 15 12 7 Ballistic Gun 7 | . 14 14 14 14 2 . . Slashing Weapon 4 | . . . . . 8 9 7 Peak Build Rating 37 | 6 6 6 12 15 37 34 34 Average Rating 21 | 4 6 6 6 13 32 32 26 On Entrance 13 | . 6 6 6 12 15 34 32 Avg Prop Armor Cover (%) . | . . . . . . . . Naked Turns . | . . . . . . . . Heaviest Build 42 | 12 12 12 27 29 42 39 39 Greatest Support 51 | 40 26 26 26 26 46 46 51 Greatest Overweight (x) 11 | . . . 1 1 2 . 11 Average Overweight (x) . | . . . . 1 . . . Largest Inventory Capacity 15 | 8 8 8 15 15 15 15 15 Average Capacity 14 | 6 8 8 14 15 15 15 15 Most Carried 15 | 2 . . 4 8 15 15 15 Average Carried 8 | . . . . 4 13 14 14 Final Capacity 15 | 8 8 8 15 15 15 15 15 Final Carried 15 | . . . . 8 15 15 8 Class Distribution -------------------- 46% | Mutant 43% | Scavenger-Assassin 8% | Assassin Dominant Class ---------------- Mutant | -10/Materials Mutant | -10/Mines Mutant | -10/Exiles Mutant | -9/Mines Scavenger-Assassin | -8/Materials Scavenger-Assassin | -8/Garrison Scavenger-Assassin | -8/Materials Resources | -11 -10 -10 -10 -9 -8 -8 -8 ----------- Run | Yrd Mat Min Exi Min Mat Gar Mat Matter Collected 608 | 231 . 54 . 85 152 68 18 Remotely . | . . . . . . . . Salvage Created 1425 | . . 14 . 91 814 262 244 Parts 95 | . . 3 . 12 49 16 15 Haulers Intercepted 2 | . . . . . 2 . . Recyclers Shooed 2 | . . 1 . 1 . . . Parts Field Recycled . | . . . . . . . . Retrieved Matter . | . . . . . . . . Parts Self-Destructed . | . . . . . . . . Prevented . | . . . . . . . . Parts Restored . | . . . . . . . . Kills | -11 -10 -10 -10 -9 -8 -8 -8 ------- Run | Yrd Mat Min Exi Min Mat Gar Mat Combat Hostiles Destroyed 32 | . . 1 . 4 15 6 6 Melee 12 | . . . . . 9 3 . Guns 15 | . . 1 . 4 6 1 3 Cannons 5 | . . . . . . 2 3 Classes Destroyed 11 | . . 1 . 1 9 . . Worker 1 | . . . . . 1 . . Tunneler 1 | . . . . 1 . . . Hauler 2 | . . . . . 2 . . Recycler 2 | . . . . . 2 . . Watcher 1 | . . . . . 1 . . Swarmer 12 | . . 1 . 4 5 . 2 Cutter 3 | . . . . . 3 . . Grunt 9 | . . . . . 2 4 3 Sentry 5 | . . . . . 2 2 1 Specialist 2 | . . . . . 2 . . Hunter 1 | . . . . . 1 . . Best Kill Streak 6 | . . 1 . 4 6 5 4 Combat Bots Only 6 | . . 1 . 4 6 5 4 Max Kills in Single Turn 2 | . . 1 . 2 1 2 1 Gunslinging 1 | . . . . 1 . . . Exploded . | . . . . . . . . Melee 1 | . . . . . 1 1 . Uniques/NPCs Destroyed . | . . . . . . . . Combat | -11 -10 -10 -10 -9 -8 -8 -8 -------- Run | Yrd Mat Min Exi Min Mat Gar Mat Hostile Shots Fired 274 | . . 1 . 17 71 46 139 Missed 86 | . . 1 . 5 27 7 46 Hits 188 | . . . . 12 44 39 93 Melee 12 | . . . . . 5 . 7 Projectile 176 | . . . . 12 39 39 86 Critical Strikes 7 | . . . . . 2 2 3 Damage Taken 2678 | . . 6 . 97 564 694 1317 Core 574 | . . . . 23 73 49 429 Absorbed by Shields . | . . . . . . . . Redirected to Shielding 39 | . . . . . 39 . . Core Remaining (%) 95 | 100 . . . 90 . . . Volleys Fired 83 | . . 4 6 12 28 9 24 Largest 2 | . . 2 1 2 2 2 1 Hottest 126 | . . 70 50 70 126 126 63 Shots Fired 131 | . . 8 6 24 56 13 24 Gun 119 | . . 8 6 24 56 9 16 Cannon 11 | . . . . . . 3 8 Launcher 1 | . . . . . . 1 . Special . | . . . . . . . . Kinetic 26 | . . 4 3 12 4 3 . Thermal 104 | . . 4 3 12 52 9 24 Explosive 1 | . . . . . . 1 . Electromagnetic . | . . . . . . . . Robot Hit Streak 13 | . . 2 . 2 13 9 5 Robot Miss Streak 4 | . . 2 . 3 3 4 4 Penetration Max . | . . . . . . . . Secondary Targets 2 | . . . . 1 1 . . Max Gunslinging Chain 1 | . . . . 1 1 . . Shots Hit Robots 105 | . . 4 . 11 52 19 19 Core Hits 55 | . . 1 . 5 27 12 10 Critical Kills . | . . . . . . . . Critical Parts Destroyed . | . . . . . . . . Critical Strikes 8 | . . . . 1 5 . 2 Burn 5 | . . . . 1 3 . 1 Sever 3 | . . . . . 2 . 1 Melee Attacks 35 | . . . . . 21 8 6 Impact . | . . . . . . . . Slashing 35 | . . . . . 21 8 6 Piercing . | . . . . . . . . Sneak Attacks 5 | . . . . . 4 1 . Combat Hostiles 1 | . . . . . . 1 . Follow-up Attacks . | . . . . . . . . Damage Inflicted 2532 | . . 63 . 132 1335 586 416 Guns 1007 | . . 50 . 132 538 156 131 Cannons 247 | . . . . . . 84 163 Explosions 41 | . . . . . . 41 . Melee 1223 | . . . . . 797 305 121 Ramming 14 | . . 13 . . . . 1 Kinetic 189 | . . 25 . 69 26 69 . Thermal 1050 | . . 25 . 63 512 156 294 Explosive 41 | . . . . . . 41 . Electromagnetic . | . . . . . . . . Impact 15 | . . . . . . 15 . Slashing 1223 | . . . . . 797 305 121 Piercing . | . . . . . . . . Highest Corruption 3 | . . . . . . . 3 Average Corruption 3 | . . . . . . . 3 Corruption Purged . | . . . . . . . . Corruption Blocked . | . . . . . . . . Effects 2 | . . . . . . . 2 Message Errors 1 | . . . . . . . 1 Data Loss (minor) 1 | . . . . . . . 1 Overload Shots . | . . . . . . . . Overflow Damage 180 | . . . . . 112 68 . Projectiles . | . . . . . . . . Explosions . | . . . . . . . . Melee 180 | . . . . . 112 68 . Knockbacks . | . . . . . . . . Impact . | . . . . . . . . Kinetic . | . . . . . . . . Secondary . | . . . . . . . . Self-Inflicted Damage 27 | . . 6 . . . 21 . Shots 1 | . . . . . . 1 . Rammed 5 | . . 3 . . . . 2 Targets Rammed 5 | . . 3 . . . . 2 Kicked . | . . . . . . . . Crushed . | . . . . . . . . Highest Temperature 382 | . . 27 30 36 382 105 51 Average Temperature 64 | . . 13 16 13 102 47 17 Received Heat Transfer 1017 | . . . . . 108 324 585 Siege Activations . | . . . . . . . . Martial Activations . | . . . . . . . . Shielding Activations . | . . . . . . . . Robots Disrupted . | . . . . . . . . Combat Hostiles . | . . . . . . . . Robots Corrupted . | . . . . . . . . Combat Hostiles . | . . . . . . . . Parts Fried . | . . . . . . . . Impact Corruptions . | . . . . . . . . Robots Melted . | . . . . . . . . Combat Hostiles . | . . . . . . . . Parts Melted 1 | . . . . . 1 . . Heat Transferred 2701 | . . 74 . 259 1369 333 666 Parts Sabotaged . | . . . . . . . . Parts Stolen . | . . . . . . . . Parts Stripped . | . . . . . . . . Power Chain Reactions . | . . . . . . . . Alert | -11 -10 -10 -10 -9 -8 -8 -8 ------- Run | Yrd Mat Min Exi Min Mat Gar Mat Maximum Alert Level . | . . . . . . . . Low Security (%) 100 | 100 100 100 . 100 100 100 100 Level 1 . | . . . . . . . . Level 2 . | . . . . . . . . Level 3 . | . . . . . . . . Level 4 . | . . . . . . . . Level 5 . | . . . . . . . . High Security . | . . . . . . . . Max Security . | . . . . . . . . Peak Influence 190 | . 3 30 . 80 156 190 110 Initial 92 | . . . . . . 91 92 Average 37 | . . 4 . 15 33 140 67 Influence Increases 901 | . 3 30 . 95 463 139 171 Destroy 0b10 Robot/C 640 | . . 20 . 80 300 120 120 Destroy 0b10 Robot/NC 35 | . . . . 5 30 . . Destroy Leader 116 | . . 10 . 10 76 . 20 Successful Hack 59 | . 3 . . . 12 14 30 Disable Machine 45 | . . . . . 45 . . Destroy Structure 6 | . . . . . . 5 1 Influence Decreases 868 | . 3 30 . 95 323 89 328 Entered New Map 147 | . . . . . . 49 98 Time Decay 581 | . 3 30 . 95 303 . 150 Lost Part 140 | . . . . . 20 40 80 Squads Dispatched 13 | . . . . . 8 . 5 Investigation 3 | . . . . . . . 3 Extermination . | . . . . . . . . Reinforcement 9 | . . . . . 7 . 2 Assault . | . . . . . . . . Garrison 1 | . . . . . 1 . . Intercept . | . . . . . . . . Searches Triggered . | . . . . . . . . Construction Impeded 1 | . . . . . . . 1 Haulers Reinforced . | . . . . . . . . Active Scanning Responses . | . . . . . . . . Cargo Convoy Interrupts . | . . . . . . . . Stealth | -11 -10 -10 -10 -9 -8 -8 -8 --------- Run | Yrd Mat Min Exi Min Mat Gar Mat Distress Signals 1 | . . . . . 1 . . Communications Jammed . | . . . . . . . . Distress Signals . | . . . . . . . . Times Spotted 48 | . . 3 . 4 22 6 13 Peak Tracking Total 9 | . . 3 . 4 6 5 9 Tactical Retreats . | . . . . . . . . Traps | -11 -10 -10 -10 -9 -8 -8 -8 ------- Run | Yrd Mat Min Exi Min Mat Gar Mat Traps Triggered 5 | . . . . . . 1 4 Indirectly . | . . . . . . . . Trap Hack Attempts . | . . . . . . . . Triggered . | . . . . . . . . Disarmed . | . . . . . . . . Reprogrammed . | . . . . . . . . Reused . | . . . . . . . . Traps Extracted . | . . . . . . . . Installed . | . . . . . . . . Triggered . | . . . . . . . . Machines | -11 -10 -10 -10 -9 -8 -8 -8 ---------- Run | Yrd Mat Min Exi Min Mat Gar Mat Machines Disabled 3 | . . . . . 3 . . Max in Single Turn 1 | . . . . . 1 . . Machines Repaired . | . . . . . . . . Machines Dismantled . | . . . . . . . . Machines Sabotaged . | . . . . . . . . Overloaded Fab Kills . | . . . . . . . . Hacking | -11 -10 -10 -10 -9 -8 -8 -8 --------- Run | Yrd Mat Min Exi Min Mat Gar Mat Machines Accessed 19 | . 3 . 5 . 6 1 4 Terminals 8 | . 2 . . . 3 1 2 Fabricators . | . . . . . . . . Repair Stations . | . . . . . . . . Recycling Units 2 | . 1 . . . . . 1 Scanalyzers 3 | . . . . . 2 . 1 Garrison Access 1 | . . . . . 1 . . Total Hacks 89 | . 6 . 50 . 19 1 13 Successful 75 | . 4 . 50 . 11 1 9 Failed 13 | . 2 . . . 7 . 4 Catastrophic . | . . . . . . . . Database Lockouts 1 | . . . . . 1 . . Manual 3 | . 1 . 2 . . . . Terminals 22 | . 4 . . . 10 1 7 Fabricators . | . . . . . . . . Repair Stations . | . . . . . . . . Recycling Units 5 | . 2 . . . . . 3 Scanalyzers 10 | . . . . . 7 . 3 Garrison Access 2 | . . . . . 2 . . Terminal Hacks 60 | . 2 . 50 . 3 1 4 Record 50 | . . . 49 . 1 . . Level Access Points 1 | . . . . . . . 1 Emergency Access Points 1 | . . . . . . . 1 Locate Traps 2 | . 1 . . . . . 1 Maintenance Status 1 | . 1 . . . . . . Hauler Manifests 1 | . . . . . 1 . . Zone Layout 2 | . . . . . 1 . 1 Patrol Navigation 1 | . . . . . . 1 . Proto ID Catalog 1 | . . . 1 . . . . Fabricator Hacks . | . . . . . . . . Repair Station Hacks . | . . . . . . . . Recycling Unit Hacks 4 | . 2 . . . . . 2 Report Inventory 2 | . 1 . . . . . 1 Retrieve Matter 2 | . 1 . . . . . 1 Scanalyzer 9 | . . . . . 6 . 3 Insert Component 3 | . . . . . 3 . . Analyze 1 | . . . . . 1 . . Retrieve Study 5 | . . . . . 2 . 3 Garrison Access Hacks 2 | . . . . . 2 . . Unlock Access 1 | . . . . . 1 . . Coupler Status 1 | . . . . . 1 . . Unauthorized Hacks . | . . . . . . . . Terminals . | . . . . . . . . Fabricators . | . . . . . . . . Repair Stations . | . . . . . . . . Recycling Units . | . . . . . . . . Scanalyzers . | . . . . . . . . Garrison Access . | . . . . . . . . Data Cores Recovered . | . . . . . . . . Used . | . . . . . . . . Hacking Detections 9 | . 1 . . . 4 . 4 Full Trace Events 4 | . . . . . . . 4 Feedback Events . | . . . . . . . . Feedback Blocked . | . . . . . . . . Robot Schematics Acquired . | . . . . . . . . Robots Built . | . . . . . . . . Authchips . | . . . . . . . . Time . | . . . . . . . . Total Robot Build Rating . | . . . . . . . . Part Schematics Acquired 1 | . . . . . 1 . . Parts Built . | . . . . . . . . Authchips . | . . . . . . . . Time . | . . . . . . . . Total Part Build Rating . | . . . . . . . . Part Studies Acquired 4 | . . . . . 2 . 2 Parts Repaired . | . . . . . . . . Time . | . . . . . . . . Parts Recycled . | . . . . . . . . Recycled Matter . | . . . . . . . . Retrieved Matter . | . . . . . . . . Retrieved Components . | . . . . . . . . Parts Scanalyzed 1 | . . . . . 1 . . Part Schematics Acquired 1 | . . . . . 1 . . Parts Damaged . | . . . . . . . . Bothacking | -11 -10 -10 -10 -9 -8 -8 -8 ------------ Run | Yrd Mat Min Exi Min Mat Gar Mat Used RIF Installer . | . . . . . . . . Robots Hacked . | . . . . . . . . Non-combat . | . . . . . . . . Combat . | . . . . . . . . Robot Hacks Applied . | . . . . . . . . Relay Couplers Released . | . . . . . . . . Fabnet Peak Effective % . | . . . . . . . . Robots Rewired . | . . . . . . . . Allies Hacked . | . . . . . . . . Hacks Repelled . | . . . . . . . . Allies | -11 -10 -10 -10 -9 -8 -8 -8 -------- Run | Yrd Mat Min Exi Min Mat Gar Mat Total Allies . | . . . . . . . . Largest Group . | . . . . . . . . Highest-Rated Group . | . . . . . . . . Highest-Rated Ally . | . . . . . . . . Total Orders . | . . . . . . . . Ally Attacks . | . . . . . . . . Total Damage . | . . . . . . . . Kills . | . . . . . . . . Allies Corrupted . | . . . . . . . . Allies Melted . | . . . . . . . . Intel | -11 -10 -10 -10 -9 -8 -8 -8 ------- Run | Yrd Mat Min Exi Min Mat Gar Mat Active Infowar (turns) 3737 | . . . 221 532 2498 221 265 Optics 2970 | . . . . . 2484 221 265 T.N.C. 3717 | . . . 221 532 2498 221 245 Robot Analysis Total . | . . . . . . . . Derelict Logs Recovered 1 | . . 1 . . . . . Drone Launches . | . . . . . . . . Drone Recoveries . | . . . . . . . . Exploration | -11 -10 -10 -10 -9 -8 -8 -8 ------------- Run | Yrd Mat Min Exi Min Mat Gar Mat Turns Passed 5506 | 82 110 150 1594 532 2498 221 319 Spaces Moved 3621 | 68 117 114 1516 371 1174 119 142 Core 4 | 2 . . . . . . 2 Treads 7 | 7 . . . . . . . Legs 1139 | . . . . . 890 119 130 Wheels 2471 | 59 117 114 1516 371 284 . 10 Hover . | . . . . . . . . Flight . | . . . . . . . . Fastest Speed 50 | 50 90 90 90 95 80 120 70 Average Speed 117 | 96 90 90 103 97 147 120 118 Slowest Speed 600 | 160 90 90 105 105 260 120 600 Overloaded Moves . | . . . . . . . . Propulsion Burnouts . | . . . . . . . . Robots Hopped . | . . . . . . . . Potential Cave-ins . | . . . . . . . . Cave-ins Triggered . | . . . . . . . . Exploration Rate (%) 33 | 4 22 33 94 57 27 13 17 Regions Visited 7 Branch Regions 3 Pre-discovered Areas 1 | . . . 1 . . . . Known Exits Taken 2 | . . . 1 . 1 . . Unknown Exits Taken 4 | 1 1 1 . 1 . . . Scrap Searched 1 | . . 1 . . . . . Spaces Dug . | . . . . . . . . Terrain Destroyed 1 | . . . . . . . 1 Melee . | . . . . . . . . Projectile 1 | . . . . . . . 1 AOE . | . . . . . . . . Terrain Rammed . | . . . . . . . . Walls Destroyed . | . . . . . . . . Machines Disabled . | . . . . . . . . Actions | -11 -10 -10 -10 -9 -8 -8 -8 --------- Run | Yrd Mat Min Exi Min Mat Gar Mat Total 4682 | 82 121 153 1539 516 1851 170 250 Wait 838 | 3 5 33 12 124 580 25 56 Move 3614 | 67 116 113 1515 370 1173 118 142 Hop . | . . . . . . . . Pick Up 28 | . . . 1 7 16 1 3 Fast Attach 25 | 8 . . 2 . 7 4 4 Attach 13 | . . . . . 4 2 7 Detach 8 | 2 . . 1 . 4 1 . Swap 8 | . . . . 2 4 1 1 Drop 25 | 2 . . 2 1 14 1 5 Fire 83 | . . 4 6 12 28 9 24 Melee 35 | . . . . . 21 8 6 Ram 5 | . . 3 . . . . 2 Kick . | . . . . . . . . Crush . | . . . . . . . . Escape Stasis . | . . . . . . . . Rewire . | . . . . . . . . Trap . | . . . . . . . . Miscellaneous . | . . . . . . . . Route ------- -11/Scrapyard -10/Materials -10/Mines -10/Exiles (discovered 2 exits: *Min x2) -9/Mines -8/Materials -8/Garrison -8/Materials (discovered 3 exits: Fac x3) History --------- Turn | Location | Event 7 | -11/Scrapyard | Discovered new exit (range 16) 83 | -11/Scrapyard | Entered Materials 172 | -10/Materials | Met 8R-AWN 175 | -10/Materials | Discovered new exit (range 13) 193 | -10/Materials | Entered Mines 194 | -10/Mines | Followed 8R-AWN into the Mines 312 | -10/Mines | Build established: Mutant 340 | -10/Mines | Discovered new exit (range 5) 343 | -10/Mines | Entered Exiles 344 | -10/Exiles | Identified exit to Mines 400 | -10/Exiles | Welcomed by 8R-AWN 419 | -10/Exiles | Met EX-HEX 463 | -10/Exiles | Met EX-DEC 479 | -10/Exiles | Learned location of Zion (-7) 624 | -10/Exiles | Visited The Gauntlet 783 | -10/Exiles | Met EX-BIN 805 | -10/Exiles | Aligned with FarCom system 806 | -10/Exiles | Given EX-Vault access code 1274 | -10/Exiles | Learned about 8R-AWN's background 1701 | -10/Exiles | Opened EX-Vault 1705 | -10/Exiles | Found Prototype Ballistic Gun 1708 | -10/Exiles | Identified XL Autogun Array 1716 | -10/Exiles | Found Modified TNC 1739 | -10/Exiles | Warned to stay clear of 0b10 Research branches 1937 | -10/Exiles | Left Exiles lab with Modified TNC 1937 | -10/Exiles | Entered Mines 1955 | -9/Mines | Met a Derelict bent on vengeance 2464 | -9/Mines | Discovered new exit (range 5) 2469 | -9/Mines | Entered Materials 2469 | -8/Materials | Evolved 4 slots: Propulsion x1, Utility x2, Weapon x1 2598 | -8/Materials | Central database locked down 2842 | -8/Materials | Build established: Assassin 3344 | -8/Materials | Build established: Scavenger-Assassin 4649 | -8/Materials | Garrison activated, responded to threat 4963 | -8/Materials | Identified exit to Garrison 4967 | -8/Materials | Entered Garrison 5023 | -8/Garrison | Triggered checkpoint 5085 | -8/Garrison | Triggered checkpoint 5124 | -8/Garrison | Discovered new exit (range 5) 5155 | -8/Garrison | Lost 4 parts (1n1u2w) 5188 | -8/Garrison | Entered Materials 5305 | -8/Materials | Identified exit to Factory 5455 | -8/Materials | Core integrity fell below 50% 5485 | -8/Materials | Core integrity fell below 20% 5507 | -8/Materials | Destroyed by G-47 Trooper with Particle Gun Last Messages --------------- Acquired 18 matter. S-10 Pest heat short circuits Flight Unit. Acquired Lgt. Ion Engine. K-01 Serf collects debris. CJFI, MK#&IWANMBJCOOEUBN S-10 Pest heat damages Broken Flight Unit, Lgt. Assault Rifle, Flight Unit. S-10 Pest destroyed. K-01 Serf collects debris. G-47 Trooper destroyed. System corrupted: Component data lost. G-47 Trooper suffers critical hit (Burn). Lgt. Ion Engine destroyed. Critical hit (Burn: +37). U-05 Engineer builds a Wall. G-47 Trooper destroyed. Wheel+ destroyed. Ion Cannon destroyed. Axe+ destroyed. G-47 Trooper destroyed. Map ----- +----------------------------------------------------+ | | | | | | | | | | | | | | | | | | | | | ????????????????????????????????????????????? | | ????????????????????????????????????????????? | | ????????????????????????????????????????????? | | ????????????????????????????????????????????? | | ????????????????????????????????????????????? | | ????????????????????????????????????????????? | | ????????????????????????????????????????????? | | ????????????????????????????????????????????? | | ??????????????????######????????????????????? | | ?????????????????? ????????????????????? | | ??????????????????? #########???????????? | | ???????????????????? # #???????????? | | ????????????????????# # """#???????????? | | ????????????????????# # Y"#???????????? | | ????????????????????# #= """#???????????? | | ????????????Y???????# #@!* g #???????????? | | ?????????????######## #%g""" #???????????? | | ????????????? + +%="""g #?